{"text_format":"1","workbook":"xlsx","n_sheets":5,"sheets":["Instructions","ACCL-FA1","ACCL-FA2","ACCL-FA3","ACCL-FA4"],"not_rendered":{"charts":0,"images":2,"macros":1,"external_links":0,"defined_names":0,"comments":0,"pivot_tables":0},"unopened":[],"bounds":{"document_bytes":16777216,"sheet_cells":100000,"rows_first":2000,"rows_last":500,"rows_between":2000,"halvings":0,"cell_chars":16384,"cell_head_chars":4096},"cells_cut":0,"cells_raw":0,"read":"whole","date_system":"1900"}

{"sheet":"Instructions","index":0,"n_rows":16,"n_cols":2,"rows_kept":16,"cut":false,"hidden":false,"merged":[[14,0,14,7],[15,1,15,7],[0,0,3,7],[4,0,4,7],[5,0,13,7]]}
["MACROS MUST BE ENABLED TO USE THIS WORKSHEET"]
[]
[]
[]
["Instructions:"]
["This worksheet relies on macros to function properly. Please ensure that you have macros enabled in order to complete this worksheet.\n\n\nThese forms are used to apply for approval of a test stand to conduct witness testing for the AHRI ACCL Certification program. Each tab contains a different sheet. Please ensure the document is signed after completion and before submission. Once complete and signed, please email the form to chillerscert@ahrinet.org"]
[]
[]
[]
[]
[]
[]
[]
[]
["Cells:"]
["Yellow","Yellow cells require input from the user"]

{"sheet":"ACCL-FA1","index":1,"n_rows":87,"n_cols":11,"rows_kept":87,"cut":false,"hidden":false,"merged":[[14,5,14,9],[57,1,57,7],[58,1,58,7],[59,1,60,7],[86,1,89,10],[53,1,53,7],[54,1,54,7],[23,1,24,10],[21,5,21,9],[59,8,60,8],[85,7,85,10],[82,7,82,10],[81,7,81,10],[59,10,60,10],[80,7,80,10],[66,1,70,7],[12,5,12,9],[84,7,84,10],[83,7,83,10],[15,3,15,4],[16,5,16,9],[17,5,17,9],[18,5,18,9],[19,5,19,9],[45,6,45,7],[25,5,25,9],[26,5,26,9],[26,3,26,4],[21,1,21,4],[55,1,55,7],[51,1,51,10],[52,1,52,7],[0,5,4,10],[27,1,28,10],[13,1,13,4],[20,1,20,4],[20,5,20,9],[13,5,13,9],[0,1,4,4],[6,1,10,10],[12,3,12,4],[14,1,14,2],[14,3,14,4],[15,5,15,9],[16,3,16,4],[17,3,17,4],[18,3,18,4],[19,3,19,4],[80,1,82,5],[83,1,84,5],[61,1,62,7],[63,1,65,7],[31,3,34,10],[31,1,31,2],[74,1,76,10],[59,9,60,9],[72,6,72,10],[71,1,71,7],[61,8,62,8],[61,9,62,9],[61,10,62,10],[63,8,65,8],[63,9,65,9],[63,10,65,10],[66,8,70,8],[66,9,70,9],[66,10,70,10],[56,1,56,7],[49,1,49,10],[45,3,45,5],[40,3,43,10],[40,1,40,2],[36,3,38,10],[36,1,36,2]]}
[null,null,null,null,null,"FORM ACCL-FA1\nACCL APPLICATION FOR TEST STAND APPROVAL\n\nAHRI CERTIFICATION PROGRAM FOR\nAIR-COOLED WATER-CHILLING PACKAGES"]
[]
[]
[]
[]
[]
[null,"We, the undersigned, hereby request AHRI to approve our test stand for the purpose of conducting performance certification tests in accordance with the AHRI Certification Program for Air-Cooled Water Chilling Packages Using the Vapor Compression Cycle (ACCL). All testing will be conducted in accordance with the latest edition of AHRI Standard 550/590 (I-P), AHRI Standard 551/591 (SI) or EN Standards 14511 and 14825 and witnessed by the Independent Third-Party Laboratory contracted by AHRI."]
[]
[]
[]
[]
[]
[null,null,null,"Company:"]
[null,"Test Facility Name (Site or Building):"]
[null,null,null,"Street Address:"]
[]
[null,null,null,"City:"]
[null,null,null,"State or Province:"]
[null,null,null,"Country:"]
[null,null,null,"ZIP Code:"]
[null,"Test Stand Name (Unique Identifier):"]
[null,"New Test Stand or Renewal?",null,null,null,{"$f":"IF(K22=\"\",\"\")","v":""}]
[]
[null,"Upon successful completion of the facility inspection, a certificate will be sent to the certification contact (s) on file with AHRI. If you would like it to be sent to an additional contact within the company, please indicate below."]
[]
[null,null,null,null,"Name:"]
[null,null,null,"Email Address:"]
[null,"Indicate one of the three Approval Categories below, and submit the applicable Forms and documentation:"]
[]
[null,"Category Descriptions:"]
[]
[null,"Category 1 :",null,"Test Stand Approval (to be compliant with the latest edition of AHRI Standard 550/590 \n(I-P) or AHRI Standard 551/591 (SI)). This includes the initial approval, approval after expiration of an approval, and approval after physical and/or operational changes are made which impact results of a previous Category 1 approval."]
[]
[]
[]
[]
[null,"Category 2 :",null,"Approval of revised capacity limits on the Test Stand with a current Category 1 Approval. An approval in this category does not modify the expiration date of the Category 1 approval."]
[]
[]
[]
[null,"Category 3 :",null,"Test Stand Approval (to be compliant with the latest edition of EN Standards 14511 and 14825). This includes the initial approval, approval after expiration of an approval, and approval after physical and/or operational changes are made which impact results of a previous Category 3 approval."]
[]
[]
[]
[]
[null,null,null,"Facility Inspection Category:",null,null,{"$f":"IF(E48=\"\",\"\")","v":""}]
[]
[]
[]
[null,"Please submit all required forms for the chosen category of facility inspection as found below."]
[]
[null,"APPROVAL CATEGORIES"]
[null,"Requirements",null,null,null,null,null,null,"Category 1","Category 2","Category 3"]
[null,"Form ACCL-FA1 Application",null,null,null,null,null,null,"■","■","■"]
[null,"Form ACCL-FA2 Personnel Experience Questionnaire",null,null,null,null,null,null,"■",null,"■"]
[null,"Form ACCL-FA3 Test Stand and Equipment Questionnaire",null,null,null,null,null,null,"■","■"]
[null,"Form ACCL-FA4 Calibration Summary",null,null,null,null,null,null,"■"]
[null,"Copy of each calibration report showing last dates of calibration",null,null,null,null,null,null,"■","■","■"]
[null,"AHRI System Calibration Worksheet (Available on AHRI Website)",null,null,null,null,null,null,"■","■"]
[null,"Schematic drawing of the area of the test stand in which AHRI certification testing will be performed",null,null,null,null,null,null,"■ ",null,"■ "]
[]
[null,"Drawings of Air Sampling Tree (view figure 6-3 of ASHRAE 30 for a typical example)",null,null,null,null,null,null,"■ "]
[]
[null,"Schematic drawing or photographs of placement of Air Sampling Trees for each condenser coil configuration to be tested, with consideration to the range of sizes to be tested",null,null,null,null,null,null,"■ ",null,"■ "]
[]
[]
[null,"Photographs of the test stand in which AHRI certification testing will take place (which shall include sufficient views to show the location and connection of each instrument as well as the location and connection of the ports to be used by the Laboratory during witness testing)",null,null,null,null,null,null,"■ ",null,"■ "]
[]
[]
[]
[]
[null,"DS2 Test Stand Inspection Workbook",null,null,null,null,null,null,"■","■","■"]
[null,null,null,null,null,null,"(“■” indicates the item is required for the category)"]
[]
[null,"In signing this form and submitting all information requested above, we acknowledge that the Test Stand is in conformance with all of the provisions of the latest edition of AHRI Standard 550/590 (I-P), AHRI Standard 551/591 (SI) or EN Standards 14511 and 14825."]
[]
[]
[]
[]
[]
[]
[null,null,null,null,null,null,null,"Printed Name"]
[]
[null,"Signature of Certification Program Compliance Officer or Lab Manager",null,null,null,null,null,"Title"]
[]
[null,null,null,null,null,null,null,"Date"]
[null,"Final approval of this test stand to conduct witness testing in support of the AHRI Certification Program for Air-Cooled Water-Chilling Packages Using the Vapor Compression Cycle is contingent upon AHRI’s approval of the information provided and satisfactory completion of a test stand and equipment inspection. AHRI will notify the Participant, in writing, when final approval of the test stand to conduct witness testing has been granted. Final approval must be received before any AHRI certification tests, including program qualification tests, can be conducted in the test stand."]

{"sheet":"ACCL-FA2","index":2,"n_rows":37,"n_cols":7,"rows_kept":37,"cut":false,"hidden":false,"merged":[[26,2,28,5],[26,6,28,9],[32,5,32,6],[36,5,36,6],[31,1,31,10],[34,1,35,10],[21,2,21,5],[21,6,21,9],[22,2,22,5],[22,6,22,9],[24,2,25,5],[24,6,25,9],[16,2,16,5],[16,6,16,9],[18,2,18,5],[18,6,18,9],[19,2,19,5],[19,6,19,9],[0,5,4,10],[6,1,6,5],[9,1,9,10],[12,1,14,10],[10,1,10,5],[0,1,4,4]]}
[null,null,null,null,null,"FORM ACCL-FA2\nACCL PERSONNEL EXPERIENCE QUESTIONNAIRE\n\nAHRI CERTIFICATION PROGRAM FOR\nAIR-COOLED (ACCL) WATER-CHILLING PACKAGES"]
[]
[]
[]
[]
[]
[null,{"$f":"IF('ACCL-FA1'!F13=\"\",\"\",'ACCL-FA1'!F13)","v":""}]
[null,"Company (Participant) Name"]
[]
[null,{"$f":"IF('ACCL-FA1'!F21=\"\",\"\",'ACCL-FA1'!F21)","v":""}]
[null,"Test Stand Name (Unique Identifier)"]
[]
[null,"The following personnel are directly responsible for conducting the testing that will be witnessed at the Participant’s test stand in accordance with the AHRI Air-Cooled Water-Chilling Packages Using the Vapor Compression Cycle Certification Program:"]
[]
[]
[]
[null,null,"Primary Contact:",null,null,null,"Secondary Contact (Optional):"]
[]
[]
[null,null,"Name",null,null,null,"Name "]
[]
[]
[null,null,"Title",null,null,null,"Title "]
[]
[null,null,"Area of Responsibility for Certification Testing:",null,null,null,"Area of Responsibility for Certification Testing :"]
[]
[]
[]
[]
[]
[null,"Test Technicians:"]
[null,"Are your Test Technicians required to complete all training prior to conducting chiller testing?"]
[null,null,null,null,null,{"$f":"IF(H33=\"\",\"\")","v":""}]
[]
[null,"Have you defined a minimum level of competency that your Test Technicians must exhibit prior to conducting chiller performance testing?"]
[]
[null,null,null,null,null,{"$f":"IF(H37=\"\",\"\")","v":""}]

{"sheet":"ACCL-FA3","index":3,"n_rows":206,"n_cols":10,"rows_kept":206,"cut":false,"hidden":false,"merged":[[59,4,61,5],[59,6,61,7],[59,8,61,10],[82,1,82,10],[83,1,83,10],[84,1,84,10],[62,1,62,3],[62,4,62,5],[62,6,62,7],[62,8,62,10],[63,1,63,3],[63,4,63,5],[63,6,63,7],[63,8,63,10],[64,1,64,3],[64,4,64,5],[64,6,64,7],[64,8,64,10],[65,2,65,3],[65,4,65,5],[65,6,65,7],[65,8,65,10],[66,1,66,3],[66,4,66,10],[0,1,4,4],[0,5,4,10],[6,1,6,5],[7,1,7,4],[9,1,9,10],[10,1,10,5],[153,1,154,10],[155,1,155,2],[145,9,145,10],[146,9,146,10],[147,9,147,10],[148,3,148,10],[19,6,19,7],[20,6,20,7],[12,1,12,3],[13,1,14,2],[13,3,13,5],[14,3,14,5],[15,1,16,2],[15,3,15,5],[16,3,16,5],[130,1,130,2],[132,1,132,2],[59,1,61,3],[19,1,22,2],[19,3,20,5],[21,3,22,5],[30,1,31,5],[30,6,30,7],[30,8,30,9],[31,6,31,7],[31,8,31,9],[24,6,24,7],[25,6,25,7],[23,1,25,2],[23,3,25,5],[27,1,27,3],[28,1,29,5],[28,8,28,9],[29,6,29,7],[29,8,29,9],[22,6,22,7],[23,6,23,7],[28,6,28,7],[23,8,23,9],[24,8,24,9],[25,8,25,9],[35,1,35,4],[36,1,38,3],[36,4,38,5],[36,6,38,7],[36,8,38,10],[39,1,39,3],[32,1,33,5],[32,6,32,7],[32,8,32,9],[33,6,33,7],[33,8,33,9],[39,4,39,5],[39,6,39,7],[39,8,39,10],[51,1,51,5],[52,1,52,10],[53,1,55,10],[58,1,58,4],[41,2,41,3],[41,4,41,5],[41,6,41,7],[41,8,41,10],[40,1,40,3],[40,4,40,5],[40,6,40,7],[40,8,40,10],[42,1,42,3],[42,4,42,10],[47,1,47,7],[48,1,48,10],[49,1,49,7],[50,1,50,10],[56,5,56,6],[68,1,68,10],[69,1,69,3],[72,1,72,10],[73,1,73,4],[76,1,76,10],[77,1,77,8],[79,1,79,6],[70,1,70,2],[74,1,74,2],[78,1,78,2],[99,1,99,2],[100,1,100,2],[80,1,80,2],[101,1,101,2],[103,1,103,2],[107,1,107,2],[109,1,109,2],[105,1,105,10],[98,7,98,8],[99,7,99,8],[100,7,100,8],[101,7,101,8],[85,1,85,10],[94,1,94,3],[95,1,97,2],[95,3,97,3],[95,4,97,4],[95,5,97,6],[95,7,97,8],[95,9,97,10],[98,1,98,2],[119,6,119,8],[120,1,120,2],[120,4,120,5],[120,6,120,8],[121,1,121,2],[121,4,121,5],[121,6,121,8],[121,9,121,10],[122,9,122,10],[162,1,162,2],[162,4,162,6],[160,9,160,10],[160,7,160,8],[161,7,161,8],[162,7,162,8],[161,9,161,10],[162,9,162,10],[156,1,156,3],[157,1,159,2],[157,3,159,3],[157,4,159,6],[157,7,159,8],[157,9,159,10],[160,1,160,2],[160,4,160,6],[161,1,161,2],[161,4,161,6],[170,1,170,2],[170,3,170,4],[170,5,170,6],[163,7,163,8],[163,9,163,10],[164,3,164,10],[170,7,170,10],[171,1,171,2],[171,3,171,4],[171,5,171,6],[163,4,163,6],[164,1,164,2],[166,1,166,3],[167,1,169,2],[167,3,169,4],[167,5,169,6],[167,7,169,10],[172,1,172,2],[172,3,172,4],[172,5,172,6],[171,7,171,10],[172,7,172,10],[173,1,173,2],[173,3,173,4],[173,5,173,6],[174,3,174,4],[174,5,174,6],[173,7,173,10],[174,7,174,10],[202,1,202,10],[203,1,203,10],[176,1,176,3],[177,1,179,2],[177,3,179,4],[177,5,179,6],[177,7,179,10],[180,1,180,2],[180,3,180,4],[180,5,180,6],[180,7,180,10],[189,1,189,10],[190,1,190,9],[191,1,191,10],[196,1,196,2],[198,1,198,10],[200,1,200,10],[201,1,201,10],[187,1,187,2],[193,1,193,2],[13,6,14,7],[13,8,13,10],[14,8,14,10],[17,1,18,2],[18,3,18,5],[17,3,17,5],[205,1,205,9],[206,1,206,10],[15,8,15,10],[16,8,16,10],[17,8,17,10],[18,8,18,10],[19,8,19,10],[197,1,197,8],[183,1,183,2],[183,3,183,4],[183,5,183,6],[20,8,20,10],[21,8,21,10],[22,8,22,10],[21,6,21,7],[204,1,204,3],[186,1,186,5],[188,1,188,9],[184,3,184,4],[184,5,184,6],[181,1,181,2],[181,3,181,4],[181,5,181,6],[182,1,182,2],[182,3,182,4],[182,5,182,6],[181,7,181,10],[182,7,182,10],[183,7,183,10],[184,7,184,10],[124,1,124,2],[126,1,126,4],[122,1,122,2],[152,1,152,2],[98,9,98,10],[99,9,99,10],[100,9,100,10],[101,9,101,10],[102,9,102,10],[146,1,146,2],[146,4,146,5],[146,6,146,8],[147,4,147,5],[147,6,147,8],[148,1,148,2],[145,1,145,2],[145,4,145,5],[145,6,145,8],[124,3,124,10],[103,3,103,10],[119,9,119,10],[120,9,120,10],[142,1,144,2],[142,3,144,3],[141,1,141,4],[151,1,151,8],[142,4,144,5],[142,6,144,8],[142,9,144,10],[127,1,127,10],[128,1,128,10],[129,1,129,9],[131,1,131,10],[15,6,16,7],[17,6,18,7],[123,9,123,10],[102,7,102,8],[98,5,98,6],[99,5,99,6],[100,5,100,6],[101,5,101,6],[102,5,102,6],[123,4,123,5],[123,6,123,8],[122,4,122,5],[122,6,122,8],[106,1,106,8],[111,1,111,10],[113,1,113,10],[115,1,115,4],[116,1,118,2],[116,3,118,3],[116,4,118,5],[116,6,118,8],[116,9,118,10],[119,1,119,2],[119,4,119,5]]}
[null,null,null,null,null,"FORM ACCL-FA3\nACCL TEST STAND AND EQUIPMENT QUESTIONNAIRE\n\nAHRI CERTIFICATION PROGRAM FOR AIR-COOLED WATER\nCHILLING AND HEAT PUMP WATER-HEATING (ACCL) PACKAGES"]
[]
[]
[]
[]
[]
[null,{"$f":"IF('ACCL-FA1'!F13=\"\",\"\",'ACCL-FA1'!F13)","v":""}]
[null,"Company (Participant) Name"]
[]
[null,{"$f":"IF('ACCL-FA1'!F21=\"\",\"\",'ACCL-FA1'!F21)","v":""}]
[null,"Test Stand Name (Unique Identifier)"]
[]
[null,"1. Test Stand Limitations"]
[null,"Operating Range of Test Stand",null,"Minimum Cooling Capacity",null,null,"Indicate Tons or kW"]
[null,null,null,"Maximum Cooling Capacity"]
[null,"Evaporator Water Flow",null,"Minimum",null,null,"Indicate GPM or L/s"]
[null,null,null,"Maximum"]
[null,"Condenser Air Flow",null,"Minimum Capacity",null,null,"Indicate CFM or m3/h"]
[null,null,null,"Maximum Capacity"]
[null,"Power Supply",null,"60 Hz, 3 Phase",null,null,"Volts"]
[null,null,null,null,null,null,"Max Amps"]
[null,null,null,"50 Hz, 3 Phase",null,null,"Volts"]
[null,null,null,null,null,null,"Max Amps"]
[null,"Physical Size",null,"Dimensions of largest unit you can place in your test stand (indicate ft or m)",null,null,"Length"]
[null,null,null,null,null,null,"Height"]
[null,null,null,null,null,null,"Width"]
[]
[null,"2. Time Requirements"]
[null,"How long does it take to install and fully instrument a unit for test?",null,null,null,null,"# of Persons"]
[null,null,null,null,null,null,"Total # of man-hours"]
[null,"How long does it take to conduct a standard rating test from start to finish, including calculations?",null,null,null,null,"# of Persons"]
[null,null,null,null,null,null,"Total # of man-hours"]
[null,"How many shifts per day will you employ for witness testing?",null,null,null,null,"Length of shift, hrs."]
[null,null,null,null,null,null,"# of shifts"]
[]
[null,"3. Water Temperature Measurement"]
[null,"Instruments for determining water temperature",null,null,"Instrument Accuracy",null,"Frequency of calibration, months",null,"Is the primary standard traceable to NIST or a comparable National Standard?"]
[]
[]
[null,"RTD",null,null,null,null,null,null,{"$f":"IF(L40=\"\",\"\")","v":""}]
[null,"Thermocouple",null,null,null,null,null,null,{"$f":"IF(L41=\"\",\"\")","v":""}]
[null,"Other:",null,null,null,null,null,null,{"$f":"IF(L42=\"\",\"\")","v":""}]
[null,"Data Acquisition Type"]
[]
[]
[]
[]
[null,"Where do you place your water temperature measuring instruments?"]
[]
[null,"What type of mixing device do you employ in the chilled water medium?"]
[]
[null,"The mixing device conforms to which standard?"]
[]
[null,"Does your system have additional thermowells located near the entering and leaving water temperature\nsensors capable of accommodating ¼ inch Laboratory probes with immersion depths of 1/3 to ½ the\ndiameter of the pipe?"]
[]
[]
[null,null,null,null,null,{"$f":"IF(H57=\"\",\"\")","v":""}]
[]
[null,"4. Air Temperature Measurement"]
[null,"Instruments for determining air temperature",null,null,"Instrument Accuracy",null,"Frequency of calibration, months",null,"Is the primary standard traceable to NIST or a comparable National Standard?"]
[]
[]
[null,"RTD",null,null,null,null,null,null,{"$f":"IF(L63=\"\",\"\")","v":""}]
[null,"Thermocouple",null,null,null,null,null,null,{"$f":"IF(L64=\"\",\"\")","v":""}]
[null,"Thermopile",null,null,null,null,"N/A",null,{"$f":"IF(L65=\"\",\"\")","v":""}]
[null,"Other:",null,null,null,null,null,null,{"$f":"IF(L66=\"\",\"\")","v":""}]
[null,"Data Acquisition Type"]
[]
[null,"Are your aspirating psychrometers built according to figure 6-4 in ASHRAE 30?"]
[]
[null,{"$f":"IF(D71=\"\",\"\")","v":""}]
[]
[null,"Does the design of your Air Sampling Trees meet the intent of ASHRAE 30?"]
[]
[null,{"$f":"IF(D75=\"\",\"\")","v":""}]
[]
[null,"Does each aspirating psychrometer have an additional thermowell capable of accommodating a ¼ inch"]
[null,"laboratory probe with immersion depth of 1/3 to ½ the diameter of the flow section?"]
[null,{"$f":"IF(D79=\"\",\"\")","v":""}]
[null,"Are thermocouples all made from the same spool of wire?"]
[null,{"$f":"IF(D81=\"\",\"\")","v":""}]
[]
[null,"Is the room airflow at a constant rate or is it adjusted depending on the unit being tested?"]
[]
[null,"For the largest size unit you will test, how many air changes will the test stand be handling?"]
[]
[]
[]
[]
[]
[]
[]
[]
[]
[null,"5. Flow Measurement"]
[null,"Flow Measuring Instruments Used",null,"Instrument Accuracy","Diameter","Frequency of Calibration, months",null,"To what code\nstandard(s), if any,\nis the instrument\ninstalled?",null,"Is the primary standard traceable to NIST or a comparable National Standard?"]
[]
[]
[null,"Rota Meter",null,null,null,null,null,null,null,{"$f":"IF(L99=\"\",\"\")","v":""}]
[null,"Turbine Meter",null,null,null,null,null,null,null,{"$f":"IF(L100=\"\",\"\")","v":""}]
[null,"Orifice Meter",null,null,null,null,null,null,null,""]
[null,"Magnetic Meter",null,null,null,"N/A",null,null,null,""]
[null,"Other:",null,null,null,null,null,null,null,""]
[null,"Data Acquisition Type"]
[]
[null,"Does test stand presently have a 24 inch unobstructed section of piping free of elbows, insulation, etc."]
[null,"for several pipe diameters upstream for application of a strap-on flow meter?"]
[null,{"$f":"IF(D108=\"\",\"\")","v":""}]
[null,"Is the flow measuring device installed according to the manufacturer’s specification?"]
[null,{"$f":"IF(D110=\"\",\"\")","v":""}]
[null,"What is the length of straight pipe upstream of flow measuring device?"]
[]
[null,"What is the length of straight pipe downstream of flow measuring device?"]
[]
[]
[null,"6. Water Pressure Drop Measurement"]
[null,"Water Pressure Drop Instruments Used",null,"Instrument Accuracy","Frequency of Calibration, months",null,"To what code\nstandard(s), if any,\nis the instrument\ninstalled?",null,null,"Is the primary standard\ntraceable to NIST or a\ncomparable National\nStandard?"]
[]
[]
[null,"Differential Pressure",null,null,null,null,null,null,null,{"$f":"IF(L120=\"\",\"\")","v":""}]
[null,"Absolute Pressure 1",null,null,null,null,null,null,null,{"$f":"IF(L121=\"\",\"\")","v":""}]
[null,"Absolute Pressure 2",null,null,null,null,null,null,null,""]
[null,null,null,null,null,null,null,null,null,""]
[null,"Other:",null,null,null,null,null,null,null,""]
[null,"Data Acquisition Type"]
[]
[null,"Describe the location of static pressure taps"]
[]
[null,"Will you be utilizing adjustment factors per section 5.4 in ASHRAE 30 to adjust the measured pressure drop for"]
[null,"external piping and/or fittings?"]
[null,{"$f":"IF(D131=\"\",\"\")","v":""}]
[null,"Do your static pressure ports have an additional pair of 1/8 inch NPT ports for laboratory pressure tubes?"]
[null,{"$f":"IF(D133=\"\",\"\")","v":""}]
[]
[]
[]
[]
[]
[]
[]
[]
[null,"7. Barometric Pressure Measurement"]
[null,"Barometric Pressure Instruments Used",null,"Instrument Accuracy","Frequency of Calibration, months",null,"To what code\nstandard(s), if any,\nis the instrument\ninstalled?",null,null,"Is the primary standard\ntraceable to NIST or a\ncomparable National\nStandard?"]
[]
[]
[null,"Absolute Pressure 1",null,null,null,null,null,null,null,{"$f":"IF(L146=\"\",\"\")","v":""}]
[null,null,null,null,null,null,null,null,null,""]
[null,"Other:",null,null,null,null,null,null,null,""]
[null,"Data Acquisition Type"]
[]
[]
[null,"What is the approximate measure above sea level of your test stand? (Indicate ft or m)?"]
[]
[null,"What is the approximate standard barometric pressure at the location of your test facility? (Indicate psia or kPa)"]
[]
[]
[null,"8. Power Measurement"]
[null,"Power Measurement Devices",null,"Instrument Accuracy","Frequency of Calibration, months",null,null,"Capable of both 50 and 60 Hz non-sinusoidal measurement?\n",null,"Is the primary standard\ntraceable to NIST or a\ncomparable National\nStandard?"]
[]
[]
[null,"Watt Meter",null,null,null,null,null,null,null,{"$f":"IF(L161=\"\",\"\")","v":""}]
[null,"Watt Hour Meter",null,null,null,null,null,null,null,{"$f":"IF(L162=\"\",\"\")","v":""}]
[null,"Transducers",null,null,null,null,null,null,null,""]
[null,"Other:",null,null,null,null,null,null,null,""]
[null,"Data Acquisition Type"]
[]
[null,"9. Voltage Measurement"]
[null,"Type of Voltmeter used",null,"Instrument Accuracy/Metering Class",null,"Frequency of Calibration, months",null,"Is the primary standard traceable to NIST or a comparable National Standard?"]
[]
[]
[null,"Analog Meter",null,null,null,null,null,{"$f":"IF(L171=\"\",\"\")","v":""}]
[null,"Digital Meter",null,null,null,null,null,{"$f":"IF(L172=\"\",\"\")","v":""}]
[null,"Transducers",null,null,null,null,null,""]
[null,"Potential Transformer",null,null,null,null,null,""]
[null,"Other:",null,null,null,null,null,{"$f":"IF(L175=\"\",\"\")","v":""}]
[]
[null,"10. Current Measurement"]
[null,"Type of Ammeter used",null,"Instrument Accuracy/Metering Class",null,"Frequency of Calibration, months",null,"Is the primary standard traceable to NIST or a comparable National Standard?"]
[]
[]
[null,"Analog Meter",null,null,null,null,null,{"$f":"IF(L181=\"\",\"\")","v":""}]
[null,"Digital Meter",null,null,null,null,null,{"$f":"IF(L182=\"\",\"\")","v":""}]
[null,"Transducers",null,null,null,null,null,""]
[null,"Current Transformer",null,null,null,null,null,""]
[null,"Other:",null,null,null,null,null,""]
[]
[null,"Is a regulated voltage supply available for test unit?"]
[null,{"$f":"IF(D188=\"\",\"\")","v":""}]
[null,"If not regulated, what is the frequency and the magnitude of change over 24 hours?"]
[]
[null,"What is the magnitude of change in the supply voltage between “load” and “no load”?"]
[]
[null,"Is the wave shape of the supply voltage a complete sine wave?"]
[null,{"$f":"IF(D194=\"\",\"\")","v":""}]
[null,"If not, attach a sample wave form and details of the power source including total harmonic distortion."]
[]
[null,"11. Data Acquisition"]
[null,"Describe data acquisition system and data obtained (averaging or instantaneous):"]
[]
[null,"12. Facility Limitations"]
[null,"Identify all Test Stand limitations for achieving AHRI test conditions (i.e. weather dependencies; air flow rates; etc)."]
[]
[null,"Identify all limitations for conducting AHRI certification testing (i.e. Test Stand availability; operator training, etc)."]
[]
[null,"13. Refrigerant Charge"]
[null,"What method do you employ to confirm proper refrigerant charge in the unit for test?"]

{"sheet":"ACCL-FA4","index":4,"n_rows":736,"n_cols":10,"rows_kept":736,"cut":false,"hidden":false,"merged":[[619,1,619,2],[619,3,619,7],[619,8,619,10],[620,1,620,2],[620,3,620,7],[620,8,620,10],[628,4,628,7],[630,1,631,10],[632,1,632,9],[633,5,633,6],[625,1,625,5],[625,6,625,7],[627,1,627,10],[621,1,621,2],[621,3,621,7],[621,8,621,10],[622,1,622,2],[622,3,622,7],[622,8,622,10],[523,1,523,2],[523,3,523,7],[523,8,523,10],[524,1,524,2],[524,3,524,7],[524,8,524,10],[521,1,521,2],[521,3,521,7],[521,8,521,10],[522,1,522,2],[522,3,522,7],[522,8,522,10],[478,1,478,2],[478,3,478,7],[477,8,477,10],[478,8,478,10],[479,1,479,2],[479,3,479,7],[479,8,479,10],[474,1,474,2],[474,3,474,7],[474,8,474,10],[475,1,475,2],[475,3,475,7],[475,8,475,10],[74,1,74,10],[35,1,35,10],[121,1,121,10],[168,1,168,10],[215,1,215,10],[262,1,262,10],[71,1,73,10],[75,5,75,6],[77,1,77,10],[78,2,80,9],[111,4,111,7],[113,1,114,10],[115,1,115,9],[116,5,116,6],[246,1,246,2],[246,3,246,7],[246,8,246,10],[249,1,249,5],[249,6,249,7],[251,1,251,10],[252,4,252,7],[254,1,255,10],[256,1,256,9],[257,5,257,6],[713,1,713,2],[713,3,713,7],[713,8,713,10],[714,1,714,2],[714,3,714,7],[714,8,714,10],[259,1,261,10],[263,5,263,6],[265,1,265,10],[266,2,268,9],[447,1,449,10],[450,1,450,10],[451,5,451,6],[453,1,453,10],[454,2,456,9],[487,4,487,7],[489,1,490,10],[491,1,491,9],[492,5,492,6],[476,1,476,2],[476,3,476,7],[476,8,476,10],[477,1,477,2],[477,3,477,7],[733,5,733,6],[735,1,735,10],[736,2,738,9],[711,1,711,2],[711,3,711,7],[711,8,711,10],[712,1,712,2],[712,3,712,7],[712,8,712,10],[722,4,722,7],[724,1,725,10],[726,1,726,9],[727,5,727,6],[719,1,719,5],[719,6,719,7],[721,1,721,10],[729,1,731,10],[732,1,732,10],[715,1,715,2],[715,3,715,7],[715,8,715,10],[716,1,716,2],[716,3,716,7],[716,8,716,10],[708,2,708,4],[709,1,709,2],[709,3,709,7],[709,8,709,10],[710,1,710,2],[710,3,710,7],[710,8,710,10],[705,1,705,10],[707,1,707,10],[675,4,675,7],[677,1,678,10],[679,1,679,9],[680,5,680,6],[682,1,684,10],[685,1,685,10],[686,5,686,6],[688,1,688,10],[689,2,691,9],[669,1,669,2],[669,3,669,7],[669,8,669,10],[672,1,672,5],[672,6,672,7],[674,1,674,10],[667,1,667,2],[667,3,667,7],[667,8,667,10],[668,1,668,2],[668,3,668,7],[668,8,668,10],[665,1,665,2],[665,3,665,7],[665,8,665,10],[666,1,666,2],[666,3,666,7],[666,8,666,10],[663,1,663,2],[663,3,663,7],[663,8,663,10],[664,1,664,2],[664,3,664,7],[664,8,664,10],[658,1,658,10],[660,1,660,10],[661,2,661,4],[662,1,662,2],[662,3,662,7],[662,8,662,10],[635,1,637,10],[638,1,638,10],[639,5,639,6],[641,1,641,10],[642,2,644,9],[617,1,617,2],[617,3,617,7],[617,8,617,10],[618,1,618,2],[618,3,618,7],[618,8,618,10],[614,2,614,4],[615,1,615,2],[615,3,615,7],[615,8,615,10],[616,1,616,2],[616,3,616,7],[616,8,616,10],[611,1,611,10],[613,1,613,10],[575,1,575,2],[575,3,575,7],[575,8,575,10],[578,1,578,5],[578,6,578,7],[580,1,580,10],[581,4,581,7],[583,1,584,10],[585,1,585,9],[586,5,586,6],[588,1,590,10],[591,1,591,10],[592,5,592,6],[594,1,594,10],[595,2,597,9],[573,1,573,2],[573,3,573,7],[573,8,573,10],[574,1,574,2],[574,3,574,7],[574,8,574,10],[571,1,571,2],[571,3,571,7],[571,8,571,10],[572,1,572,2],[572,3,572,7],[572,8,572,10],[569,1,569,2],[569,3,569,7],[569,8,569,10],[570,1,570,2],[570,3,570,7],[570,8,570,10],[564,1,564,10],[566,1,566,10],[567,2,567,4],[568,1,568,2],[568,3,568,7],[568,8,568,10],[548,2,550,9],[527,1,527,2],[527,3,527,7],[527,8,527,10],[528,1,528,2],[528,3,528,7],[528,8,528,10],[525,1,525,2],[525,3,525,7],[525,8,525,10],[526,1,526,2],[526,3,526,7],[526,8,526,10],[534,4,534,7],[536,1,537,10],[538,1,538,9],[539,5,539,6],[541,1,543,10],[544,1,544,10],[545,5,545,6],[547,1,547,10],[531,1,531,5],[531,6,531,7],[533,1,533,10],[517,1,517,10],[519,1,519,10],[520,2,520,4],[494,1,496,10],[480,1,480,2],[480,3,480,7],[480,8,480,10],[481,1,481,2],[481,3,481,7],[481,8,481,10],[484,1,484,5],[484,6,484,7],[486,1,486,10],[497,1,497,10],[498,5,498,6],[500,1,500,10],[501,2,503,9],[470,1,470,10],[472,1,472,10],[473,2,473,4],[471,1,471,5],[434,1,434,2],[434,3,434,7],[434,8,434,10],[437,1,437,5],[437,6,437,7],[439,1,439,10],[440,4,440,7],[442,1,443,10],[444,1,444,9],[445,5,445,6],[432,1,432,2],[432,3,432,7],[432,8,432,10],[433,1,433,2],[433,3,433,7],[433,8,433,10],[430,1,430,2],[430,3,430,7],[430,8,430,10],[431,1,431,2],[431,3,431,7],[431,8,431,10],[428,1,428,2],[428,3,428,7],[428,8,428,10],[429,1,429,2],[429,3,429,7],[429,8,429,10],[423,1,423,10],[425,1,425,10],[426,2,426,4],[427,1,427,2],[427,3,427,7],[427,8,427,10],[404,5,404,6],[406,1,406,10],[407,2,409,9],[386,1,386,2],[386,3,386,7],[386,8,386,10],[387,1,387,2],[387,3,387,7],[387,8,387,10],[390,1,390,5],[390,6,390,7],[392,1,392,10],[393,4,393,7],[395,1,396,10],[397,1,397,9],[398,5,398,6],[400,1,402,10],[403,1,403,10],[384,1,384,2],[384,3,384,7],[384,8,384,10],[385,1,385,2],[385,3,385,7],[385,8,385,10],[382,1,382,2],[382,3,382,7],[382,8,382,10],[383,1,383,2],[383,3,383,7],[383,8,383,10],[379,2,379,4],[380,1,380,2],[380,3,380,7],[380,8,380,10],[381,1,381,2],[381,3,381,7],[381,8,381,10],[376,1,376,10],[378,1,378,10],[346,4,346,7],[348,1,349,10],[350,1,350,9],[351,5,351,6],[353,1,355,10],[356,1,356,10],[357,5,357,6],[359,1,359,10],[360,2,362,9],[340,1,340,2],[340,3,340,7],[340,8,340,10],[343,1,343,5],[343,6,343,7],[345,1,345,10],[338,1,338,2],[338,3,338,7],[338,8,338,10],[339,1,339,2],[339,3,339,7],[339,8,339,10],[336,1,336,2],[336,3,336,7],[336,8,336,10],[337,1,337,2],[337,3,337,7],[337,8,337,10],[334,1,334,2],[334,3,334,7],[334,8,334,10],[335,1,335,2],[335,3,335,7],[335,8,335,10],[329,1,329,10],[331,1,331,10],[332,2,332,4],[333,1,333,2],[333,3,333,7],[333,8,333,10],[301,1,302,10],[303,1,303,9],[304,5,304,6],[306,1,308,10],[309,1,309,10],[310,5,310,6],[312,1,312,10],[313,2,315,9],[299,4,299,7],[290,1,290,2],[290,3,290,7],[290,8,290,10],[291,1,291,2],[291,3,291,7],[291,8,291,10],[288,1,288,2],[288,3,288,7],[288,8,288,10],[289,1,289,2],[289,3,289,7],[289,8,289,10],[296,1,296,5],[296,6,296,7],[298,1,298,10],[292,1,292,2],[292,3,292,7],[292,8,292,10],[293,1,293,2],[293,3,293,7],[293,8,293,10],[285,2,285,4],[286,1,286,2],[286,3,286,7],[286,8,286,10],[287,1,287,2],[287,3,287,7],[287,8,287,10],[282,1,282,10],[284,1,284,10],[244,1,244,2],[244,3,244,7],[244,8,244,10],[245,1,245,2],[245,3,245,7],[245,8,245,10],[242,1,242,2],[242,3,242,7],[242,8,242,10],[243,1,243,2],[243,3,243,7],[243,8,243,10],[240,1,240,2],[240,3,240,7],[240,8,240,10],[241,1,241,2],[241,3,241,7],[241,8,241,10],[235,1,235,10],[237,1,237,10],[238,2,238,4],[239,1,239,2],[239,3,239,7],[239,8,239,10],[218,1,218,10],[219,2,221,9],[198,1,198,2],[198,3,198,7],[198,8,198,10],[199,1,199,2],[199,3,199,7],[199,8,199,10],[196,1,196,2],[196,3,196,7],[196,8,196,10],[197,1,197,2],[197,3,197,7],[197,8,197,10],[202,1,202,5],[202,6,202,7],[204,1,204,10],[205,4,205,7],[207,1,208,10],[209,1,209,9],[210,5,210,6],[212,1,214,10],[216,5,216,6],[194,1,194,2],[194,3,194,7],[194,8,194,10],[195,1,195,2],[195,3,195,7],[195,8,195,10],[191,2,191,4],[192,1,192,2],[192,3,192,7],[192,8,192,10],[193,1,193,2],[193,3,193,7],[193,8,193,10],[188,1,188,10],[190,1,190,10],[158,4,158,7],[160,1,161,10],[162,1,162,9],[163,5,163,6],[165,1,167,10],[169,5,169,6],[171,1,171,10],[172,2,174,9],[152,1,152,2],[152,3,152,7],[152,8,152,10],[155,1,155,5],[155,6,155,7],[157,1,157,10],[150,1,150,2],[150,3,150,7],[150,8,150,10],[151,1,151,2],[151,3,151,7],[151,8,151,10],[148,1,148,2],[148,3,148,7],[148,8,148,10],[149,1,149,2],[149,3,149,7],[149,8,149,10],[146,1,146,2],[146,3,146,7],[146,8,146,10],[147,1,147,2],[147,3,147,7],[147,8,147,10],[141,1,141,10],[143,1,143,10],[144,2,144,4],[145,1,145,2],[145,3,145,7],[145,8,145,10],[118,1,120,10],[122,5,122,6],[124,1,124,10],[125,2,127,9],[108,1,108,5],[108,6,108,7],[110,1,110,10],[104,1,104,2],[104,3,104,7],[104,8,104,10],[105,1,105,2],[105,3,105,7],[105,8,105,10],[102,1,102,2],[102,3,102,7],[102,8,102,10],[103,1,103,2],[103,3,103,7],[103,8,103,10],[100,1,100,2],[100,3,100,7],[100,8,100,10],[101,1,101,2],[101,3,101,7],[101,8,101,10],[96,1,96,10],[97,2,97,4],[98,1,98,2],[98,3,98,7],[98,8,98,10],[99,1,99,2],[99,3,99,7],[99,8,99,10],[94,1,94,10],[63,1,63,10],[64,4,64,7],[66,1,67,10],[68,1,68,9],[56,1,56,2],[56,3,56,7],[56,8,56,10],[57,1,57,2],[57,3,57,7],[57,8,57,10],[19,1,19,2],[20,1,20,2],[39,2,41,9],[27,1,28,10],[20,3,20,7],[22,6,22,7],[22,1,22,5],[24,1,24,10],[20,8,20,10],[29,1,29,9],[25,4,25,7],[30,5,30,6],[19,3,19,7],[19,8,19,10],[36,5,36,6],[38,1,38,10],[32,1,34,10],[69,5,69,6],[52,1,52,2],[52,3,52,7],[52,8,52,10],[53,1,53,2],[53,3,53,7],[53,8,53,10],[47,1,47,10],[49,1,49,10],[50,2,50,4],[51,1,51,2],[51,3,51,7],[51,8,51,10],[58,1,58,2],[58,3,58,7],[58,8,58,10],[61,1,61,5],[61,6,61,7],[54,1,54,2],[54,3,54,7],[54,8,54,10],[55,1,55,2],[55,3,55,7],[55,8,55,10],[17,1,17,2],[0,1,4,4],[13,3,13,7],[14,3,14,7],[15,3,15,7],[16,3,16,7],[17,3,17,7],[17,8,17,10],[18,8,18,10],[13,8,13,10],[14,8,14,10],[15,8,15,10],[16,8,16,10],[0,5,4,10],[9,1,9,10],[12,2,12,4],[11,1,11,10],[13,1,13,2],[14,1,14,2],[15,1,15,2],[16,1,16,2],[18,1,18,2],[18,3,18,7]]}
[null,null,null,null,null,"FORM ACCL-FA4\nACCL CALIBRATION SUMMARY\n\nAHRI CERTIFICATION PROGRAM FOR\nAIR-COOLED (ACCL) WATER-CHILLING PACKAGES"]
[]
[]
[]
[]
[]
[null,"The purpose of this form is to provide sufficient information so that a determination can be made of the"]
[null,"range over which the calibration process achieves the required accuracy for each of the systems listed."]
[]
[null,"SYSTEM 1: LIQUID MASS FLOW RATE, INSTRUMENT SET #1"]
[]
[null,"1. Using the Table below, list all instruments and data acquisition devices in the System."]
[]
[null,"Instrument/Device",null,"Description",null,null,null,null,"Manufacturer Stated Accuracy"]
[]
[]
[]
[]
[]
[]
[]
[]
[null,"What is the intended range- of-use for the System?",null,null,null,null,"(Lower-Upper):",null,null,"-"]
[]
[null,"Was the system calibrated as a whole, or were each instruments/devices calibrated individually? "]
[null,null,null,null,{"$f":"IF(I26=\"\",\"\")","v":""}]
[]
[null,"2. Whole System Calibration Points: Attach a completed AHRI Standard 550/590 (I-P) or AHRI Standard\n551/591 (SI) Calibration Worksheet (found online at www.ahrinet.org)"]
[]
[null,"Does the System meet the required accuracy over the intended range-of-use?"]
[]
[]
[null,"3. Individual Component Calibration Points: For each Instrument/Device listed in the Table above,\nattach a completed AHRI Standard 550/590 (I-P) or AHRI Standard 551/591 (SI) Calibration Worksheet\n(found online at www.ahrinet.org)."]
[]
[]
[null,"Does the System meet the required accuracy over the intended range-of-use?"]
[]
[]
[null,"Describe the method of analysis used to make the determination of system accuracy:"]
[]
[]
[]
[]
[]
[]
[]
[]
[null,"SYSTEM 2: LIQUID MASS FLOW RATE, INSTRUMENT SET #2"]
[]
[null,"1. Using the Table below, list all instruments and data acquisition devices in the System."]
[]
[null,"Instrument/Device",null,"Description",null,null,null,null,"Manufacturer Stated Accuracy"]
[]
[]
[]
[]
[]
[]
[]
[]
[]
[null,"What is the intended range- of-use for the System?",null,null,null,null,"(Lower-Upper):",null,null,"-"]
[]
[null,"Was the system calibrated as a whole, or were each instruments/devices calibrated individually? "]
[null,null,null,null,{"$f":"IF(I65=\"\",\"\")","v":""}]
[]
[null,"2. Whole System Calibration Points: Attach a completed AHRI Standard 550/590 (I-P) or AHRI Standard\n551/591 (SI) Calibration Worksheet (found online at www.ahrinet.org)"]
[]
[null,"Does the System meet the required accuracy over the intended range-of-use?"]
[null,null,null,null,null,{"$f":"IF(H70=\"\",\"\")","v":""}]
[]
[null,"3. Individual Component Calibration Points: For each Instrument/Device listed in the Table above,\nattach a completed AHRI Standard 550/590 (I-P) or AHRI Standard 551/591 (SI) Calibration Worksheet\n(found online at www.ahrinet.org)."]
[]
[]
[null,"Does the System meet the required accuracy over the intended range-of-use?"]
[null,null,null,null,null,{"$f":"IF(H76=\"\",\"\")","v":""}]
[]
[null,"Describe the method of analysis used to make the determination of system accuracy:"]
[]
[]
[]
[]
[]
[]
[]
[]
[]
[]
[]
[]
[]
[]
[]
[]
[null,"SYSTEM 3: DIFFERENTIAL PRESSURE"]
[]
[null,"1. Using the Table below, list all instruments and data acquisition devices in the System."]
[]
[null,"Instrument/Device",null,"Description",null,null,null,null,"Manufacturer Stated Accuracy"]
[]
[]
[]
[]
[]
[]
[]
[]
[]
[null,"What is the intended range- of-use for the System?",null,null,null,null,"(Lower-Upper):",null,null,"-"]
[]
[null,"Was the system calibrated as a whole, or were each instruments/devices calibrated individually? "]
[null,null,null,null,{"$f":"IF(I112=\"\",\"\")","v":""}]
[]
[null,"2. Whole System Calibration Points: Attach a completed AHRI Standard 550/590 (I-P) or AHRI Standard\n551/591 (SI) Calibration Worksheet (found online at www.ahrinet.org)"]
[]
[null,"Does the System meet the required accuracy over the intended range-of-use?"]
[null,null,null,null,null,{"$f":"IF(H117=\"\",\"\")","v":""}]
[]
[null,"3. Individual Component Calibration Points: For each Instrument/Device listed in the Table above,\nattach a completed AHRI Standard 550/590 (I-P) or AHRI Standard 551/591 (SI) Calibration Worksheet\n(found online at www.ahrinet.org)."]
[]
[]
[null,"Does the System meet the required accuracy over the intended range-of-use?"]
[null,null,null,null,null,{"$f":"IF(H123=\"\",\"\")","v":""}]
[]
[null,"Describe the method of analysis used to make the determination of system accuracy:"]
[]
[]
[]
[]
[]
[]
[]
[]
[]
[]
[]
[]
[]
[]
[]
[]
[null,"SYSTEM 4: ELECTRICAL POWER, INSTRUMENT SET #1 "]
[]
[null,"1. Using the Table below, list all instruments and data acquisition devices in the System."]
[]
[null,"Instrument/Device",null,"Description",null,null,null,null,"Manufacturer Stated Accuracy"]
[]
[]
[]
[]
[]
[]
[]
[]
[]
[null,"What is the intended range- of-use for the System?",null,null,null,null,"(Lower-Upper):",null,null,"-"]
[]
[null,"Was the system calibrated as a whole, or were each instruments/devices calibrated individually? "]
[null,null,null,null,{"$f":"IF(I159=\"\",\"\")","v":""}]
[]
[null,"2. Whole System Calibration Points: Attach a completed AHRI Standard 550/590 (I-P) or AHRI Standard\n551/591 (SI) Calibration Worksheet (found online at www.ahrinet.org)"]
[]
[null,"Does the System meet the required accuracy over the intended range-of-use?"]
[null,null,null,null,null,{"$f":"IF(H164=\"\",\"\")","v":""}]
[]
[null,"3. Individual Component Calibration Points: For each Instrument/Device listed in the Table above,\nattach a completed AHRI Standard 550/590 (I-P) or AHRI Standard 551/591 (SI) Calibration Worksheet\n(found online at www.ahrinet.org)."]
[]
[]
[null,"Does the System meet the required accuracy over the intended range-of-use?"]
[null,null,null,null,null,{"$f":"IF(H170=\"\",\"\")","v":""}]
[]
[null,"Describe the method of analysis used to make the determination of system accuracy:"]
[]
[]
[]
[]
[]
[]
[]
[]
[]
[]
[]
[]
[]
[]
[]
[]
[null,"SYSTEM 5: ELECTRICAL POWER, INSTRUMENT SET #2"]
[]
[null,"1. Using the Table below, list all instruments and data acquisition devices in the System."]
[]
[null,"Instrument/Device",null,"Description",null,null,null,null,"Manufacturer Stated Accuracy"]
[]
[]
[]
[]
[]
[]
[]
[]
[]
[null,"What is the intended range- of-use for the System?",null,null,null,null,"(Lower-Upper):",null,null,"-"]
[]
[null,"Was the system calibrated as a whole, or were each instruments/devices calibrated individually? "]
[null,null,null,null,{"$f":"IF(I206=\"\",\"\")","v":""}]
[]
[null,"2. Whole System Calibration Points: Attach a completed AHRI Standard 550/590 (I-P) or AHRI Standard\n551/591 (SI) Calibration Worksheet (found online at www.ahrinet.org)"]
[]
[null,"Does the System meet the required accuracy over the intended range-of-use?"]
[null,null,null,null,null,{"$f":"IF(H211=\"\",\"\")","v":""}]
[]
[null,"3. Individual Component Calibration Points: For each Instrument/Device listed in the Table above,\nattach a completed AHRI Standard 550/590 (I-P) or AHRI Standard 551/591 (SI) Calibration Worksheet\n(found online at www.ahrinet.org)."]
[]
[]
[null,"Does the System meet the required accuracy over the intended range-of-use?"]
[null,null,null,null,null,{"$f":"IF(H217=\"\",\"\")","v":""}]
[]
[null,"Describe the method of analysis used to make the determination of system accuracy:"]
[]
[]
[]
[]
[]
[]
[]
[]
[]
[]
[]
[]
[]
[]
[]
[]
[null,"SYSTEM 6: BAROMETRIC PRESSURE"]
[]
[null,"1. Using the Table below, list all instruments and data acquisition devices in the System."]
[]
[null,"Instrument/Device",null,"Description",null,null,null,null,"Manufacturer Stated Accuracy"]
[]
[]
[]
[]
[]
[]
[]
[]
[]
[null,"What is the intended range- of-use for the System?",null,null,null,null,"(Lower-Upper):",null,null,"-"]
[]
[null,"Was the system calibrated as a whole, or were each instruments/devices calibrated individually? "]
[null,null,null,null,{"$f":"IF(I253=\"\",\"\")","v":""}]
[]
[null,"2. Whole System Calibration Points: Attach a completed AHRI Standard 550/590 (I-P) or AHRI Standard\n551/591 (SI) Calibration Worksheet (found online at www.ahrinet.org)"]
[]
[null,"Does the System meet the required accuracy over the intended range-of-use?"]
[null,null,null,null,null,{"$f":"IF(H258=\"\",\"\")","v":""}]
[]
[null,"3. Individual Component Calibration Points: For each Instrument/Device listed in the Table above,\nattach a completed AHRI Standard 550/590 (I-P) or AHRI Standard 551/591 (SI) Calibration Worksheet\n(found online at www.ahrinet.org)."]
[]
[]
[null,"Does the System meet the required accuracy over the intended range-of-use?"]
[null,null,null,null,null,{"$f":"IF(H264=\"\",\"\")","v":""}]
[]
[null,"Describe the method of analysis used to make the determination of system accuracy:"]
[]
[]
[]
[]
[]
[]
[]
[]
[]
[]
[]
[]
[]
[]
[]
[]
[null,"SYSTEM 7: LIQUID TEMPERATURE - ENTERING EVAPORATOR, INSTRUMENT SET #1"]
[]
[null,"1. Using the Table below, list all instruments and data acquisition devices in the System."]
[]
[null,"Instrument/Device",null,"Description",null,null,null,null,"Manufacturer Stated Accuracy"]
[]
[]
[]
[]
[]
[]
[]
[]
[]
[null,"What is the intended range- of-use for the System?",null,null,null,null,"(Lower-Upper):",null,null,"-"]
[]
[null,"Was the system calibrated as a whole, or were each instruments/devices calibrated individually? "]
[null,null,null,null,{"$f":"IF(I300=\"\",\"\")","v":""}]
[]
[null,"2. Whole System Calibration Points: Attach a completed AHRI Standard 550/590 (I-P) or AHRI Standard\n551/591 (SI) Calibration Worksheet (found online at www.ahrinet.org)"]
[]
[null,"Does the System meet the required accuracy over the intended range-of-use?"]
[null,null,null,null,null,{"$f":"IF(H305=\"\",\"\")","v":""}]
[]
[null,"3. Individual Component Calibration Points: For each Instrument/Device listed in the Table above,\nattach a completed AHRI Standard 550/590 (I-P) or AHRI Standard 551/591 (SI) Calibration Worksheet\n(found online at www.ahrinet.org)."]
[]
[]
[null,"Does the System meet the required accuracy over the intended range-of-use?"]
[null,null,null,null,null,{"$f":"IF(H311=\"\",\"\")","v":""}]
[]
[null,"Describe the method of analysis used to make the determination of system accuracy:"]
[]
[]
[]
[]
[]
[]
[]
[]
[]
[]
[]
[]
[]
[]
[]
[]
[null,"SYSTEM 8: LIQUID TEMPERATURE - ENTERING EVAPORATOR, INSTRUMENT SET #2"]
[]
[null,"1. Using the Table below, list all instruments and data acquisition devices in the System."]
[]
[null,"Instrument/Device",null,"Description",null,null,null,null,"Manufacturer Stated Accuracy"]
[]
[]
[]
[]
[]
[]
[]
[]
[]
[null,"What is the intended range- of-use for the System?",null,null,null,null,"(Lower-Upper):",null,null,"-"]
[]
[null,"Was the system calibrated as a whole, or were each instruments/devices calibrated individually? "]
[null,null,null,null,{"$f":"IF(I347=\"\",\"\")","v":""}]
[]
[null,"2. Whole System Calibration Points: Attach a completed AHRI Standard 550/590 (I-P) or AHRI Standard\n551/591 (SI) Calibration Worksheet (found online at www.ahrinet.org)"]
[]
[null,"Does the System meet the required accuracy over the intended range-of-use?"]
[null,null,null,null,null,{"$f":"IF(H352=\"\",\"\")","v":""}]
[]
[null,"3. Individual Component Calibration Points: For each Instrument/Device listed in the Table above,\nattach a completed AHRI Standard 550/590 (I-P) or AHRI Standard 551/591 (SI) Calibration Worksheet\n(found online at www.ahrinet.org)."]
[]
[]
[null,"Does the System meet the required accuracy over the intended range-of-use?"]
[null,null,null,null,null,{"$f":"IF(H358=\"\",\"\")","v":""}]
[]
[null,"Describe the method of analysis used to make the determination of system accuracy:"]
[]
[]
[]
[]
[]
[]
[]
[]
[]
[]
[]
[]
[]
[]
[]
[]
[null,"SYSTEM 9: LIQUID TEMPERATURE - LEAVING EVAPORATOR, INSTRUMENT SET #1"]
[]
[null,"1. Using the Table below, list all instruments and data acquisition devices in the System."]
[]
[null,"Instrument/Device",null,"Description",null,null,null,null,"Manufacturer Stated Accuracy"]
[]
[]
[]
[]
[]
[]
[]
[]
[]
[null,"What is the intended range- of-use for the System?",null,null,null,null,"(Lower-Upper):",null,null,"-"]
[]
[null,"Was the system calibrated as a whole, or were each instruments/devices calibrated individually? "]
[null,null,null,null,{"$f":"IF(I394=\"\",\"\")","v":""}]
[]
[null,"2. Whole System Calibration Points: Attach a completed AHRI Standard 550/590 (I-P) or AHRI Standard\n551/591 (SI) Calibration Worksheet (found online at www.ahrinet.org)"]
[]
[null,"Does the System meet the required accuracy over the intended range-of-use?"]
[null,null,null,null,null,{"$f":"IF(H399=\"\",\"\")","v":""}]
[]
[null,"3. Individual Component Calibration Points: For each Instrument/Device listed in the Table above,\nattach a completed AHRI Standard 550/590 (I-P) or AHRI Standard 551/591 (SI) Calibration Worksheet\n(found online at www.ahrinet.org)."]
[]
[]
[null,"Does the System meet the required accuracy over the intended range-of-use?"]
[null,null,null,null,null,{"$f":"IF(H405=\"\",\"\")","v":""}]
[]
[null,"Describe the method of analysis used to make the determination of system accuracy:"]
[]
[]
[]
[]
[]
[]
[]
[]
[]
[]
[]
[]
[]
[]
[]
[]
[null,"SYSTEM 10: LIQUID TEMPERATURE - LEAVING EVAPORATOR, INSTRUMENT SET #2"]
[]
[null,"1. Using the Table below, list all instruments and data acquisition devices in the System."]
[]
[null,"Instrument/Device",null,"Description",null,null,null,null,"Manufacturer Stated Accuracy"]
[]
[]
[]
[]
[]
[]
[]
[]
[]
[null,"What is the intended range- of-use for the System?",null,null,null,null,"(Lower-Upper):",null,null,"-"]
[]
[null,"Was the system calibrated as a whole, or were each instruments/devices calibrated individually? "]
[null,null,null,null,{"$f":"IF(I441=\"\",\"\")","v":""}]
[]
[null,"2. Whole System Calibration Points: Attach a completed AHRI Standard 550/590 (I-P) or AHRI Standard\n551/591 (SI) Calibration Worksheet (found online at www.ahrinet.org)"]
[]
[null,"Does the System meet the required accuracy over the intended range-of-use?"]
[null,null,null,null,null,{"$f":"IF(H446=\"\",\"\")","v":""}]
[]
[null,"3. Individual Component Calibration Points: For each Instrument/Device listed in the Table above,\nattach a completed AHRI Standard 550/590 (I-P) or AHRI Standard 551/591 (SI) Calibration Worksheet\n(found online at www.ahrinet.org)."]
[]
[]
[null,"Does the System meet the required accuracy over the intended range-of-use?"]
[null,null,null,null,null,{"$f":"IF(H452=\"\",\"\")","v":""}]
[]
[null,"Describe the method of analysis used to make the determination of system accuracy:"]
[]
[]
[]
[]
[]
[]
[]
[]
[]
[]
[]
[]
[]
[]
[]
[]
[null,"SYSTEM 11: AIR TEMPERATURE - CONDENSER, ASPIRATING PSYCHROMETER #1"]
[null,"(complete pages 11-16 only if required)"]
[null,"1. Using the Table below, list all instruments and data acquisition devices in the System."]
[]
[null,"Instrument/Device",null,"Description",null,null,null,null,"Manufacturer Stated Accuracy"]
[]
[]
[]
[]
[]
[]
[]
[]
[]
[null,"What is the intended range- of-use for the System?",null,null,null,null,"(Lower-Upper):",null,null,"-"]
[]
[null,"Was the system calibrated as a whole, or were each instruments/devices calibrated individually? "]
[null,null,null,null,{"$f":"IF(I488=\"\",\"\")","v":""}]
[]
[null,"2. Whole System Calibration Points: Attach a completed AHRI Standard 550/590 (I-P) or AHRI Standard\n551/591 (SI) Calibration Worksheet (found online at www.ahrinet.org)"]
[]
[null,"Does the System meet the required accuracy over the intended range-of-use?"]
[null,null,null,null,null,{"$f":"IF(H493=\"\",\"\")","v":""}]
[]
[null,"3. Individual Component Calibration Points: For each Instrument/Device listed in the Table above,\nattach a completed AHRI Standard 550/590 (I-P) or AHRI Standard 551/591 (SI) Calibration Worksheet\n(found online at www.ahrinet.org)."]
[]
[]
[null,"Does the System meet the required accuracy over the intended range-of-use?"]
[null,null,null,null,null,{"$f":"IF(H499=\"\",\"\")","v":""}]
[]
[null,"Describe the method of analysis used to make the determination of system accuracy:"]
[]
[]
[]
[]
[]
[]
[]
[]
[]
[]
[]
[]
[]
[]
[]
[]
[null,"SYSTEM 12: AIR TEMPERATURE - CONDENSER, ASPIRATING PSYCHROMETER #2"]
[]
[null,"1. Using the Table below, list all instruments and data acquisition devices in the System."]
[]
[null,"Instrument/Device",null,"Description",null,null,null,null,"Manufacturer Stated Accuracy"]
[]
[]
[]
[]
[]
[]
[]
[]
[]
[null,"What is the intended range- of-use for the System?",null,null,null,null,"(Lower-Upper):",null,null,"-"]
[]
[null,"Was the system calibrated as a whole, or were each instruments/devices calibrated individually? "]
[null,null,null,null,{"$f":"IF(I535=\"\",\"\")","v":""}]
[]
[null,"2. Whole System Calibration Points: Attach a completed AHRI Standard 550/590 (I-P) or AHRI Standard\n551/591 (SI) Calibration Worksheet (found online at www.ahrinet.org)"]
[]
[null,"Does the System meet the required accuracy over the intended range-of-use?"]
[null,null,null,null,null,{"$f":"IF(H540=\"\",\"\")","v":""}]
[]
[null,"3. Individual Component Calibration Points: For each Instrument/Device listed in the Table above,\nattach a completed AHRI Standard 550/590 (I-P) or AHRI Standard 551/591 (SI) Calibration Worksheet\n(found online at www.ahrinet.org)."]
[]
[]
[null,"Does the System meet the required accuracy over the intended range-of-use?"]
[null,null,null,null,null,{"$f":"IF(H546=\"\",\"\")","v":""}]
[]
[null,"Describe the method of analysis used to make the determination of system accuracy:"]
[]
[]
[]
[]
[]
[]
[]
[]
[]
[]
[]
[]
[]
[]
[]
[]
[null,"SYSTEM 13: AIR TEMPERATURE - CONDENSER, ASPIRATING PSYCHROMETER #3"]
[]
[null,"1. Using the Table below, list all instruments and data acquisition devices in the System."]
[]
[null,"Instrument/Device",null,"Description",null,null,null,null,"Manufacturer Stated Accuracy"]
[]
[]
[]
[]
[]
[]
[]
[]
[]
[null,"What is the intended range- of-use for the System?",null,null,null,null,"(Lower-Upper):",null,null,"-"]
[]
[null,"Was the system calibrated as a whole, or were each instruments/devices calibrated individually? "]
[null,null,null,null,{"$f":"IF(I582=\"\",\"\")","v":""}]
[]
[null,"2. Whole System Calibration Points: Attach a completed AHRI Standard 550/590 (I-P) or AHRI Standard\n551/591 (SI) Calibration Worksheet (found online at www.ahrinet.org)"]
[]
[null,"Does the System meet the required accuracy over the intended range-of-use?"]
[null,null,null,null,null,{"$f":"IF(H587=\"\",\"\")","v":""}]
[]
[null,"3. Individual Component Calibration Points: For each Instrument/Device listed in the Table above,\nattach a completed AHRI Standard 550/590 (I-P) or AHRI Standard 551/591 (SI) Calibration Worksheet\n(found online at www.ahrinet.org)."]
[]
[]
[null,"Does the System meet the required accuracy over the intended range-of-use?"]
[null,null,null,null,null,{"$f":"IF(H593=\"\",\"\")","v":""}]
[]
[null,"Describe the method of analysis used to make the determination of system accuracy:"]
[]
[]
[]
[]
[]
[]
[]
[]
[]
[]
[]
[]
[]
[]
[]
[]
[null,"SYSTEM 14: AIR TEMPERATURE - CONDENSER, ASPIRATING PSYCHROMETER #4"]
[]
[null,"1. Using the Table below, list all instruments and data acquisition devices in the System."]
[]
[null,"Instrument/Device",null,"Description",null,null,null,null,"Manufacturer Stated Accuracy"]
[]
[]
[]
[]
[]
[]
[]
[]
[]
[null,"What is the intended range- of-use for the System?",null,null,null,null,"(Lower-Upper):",null,null,"-"]
[]
[null,"Was the system calibrated as a whole, or were each instruments/devices calibrated individually? "]
[null,null,null,null,{"$f":"IF(I629=\"\",\"\")","v":""}]
[]
[null,"2. Whole System Calibration Points: Attach a completed AHRI Standard 550/590 (I-P) or AHRI Standard\n551/591 (SI) Calibration Worksheet (found online at www.ahrinet.org)"]
[]
[null,"Does the System meet the required accuracy over the intended range-of-use?"]
[null,null,null,null,null,{"$f":"IF(H634=\"\",\"\")","v":""}]
[]
[null,"3. Individual Component Calibration Points: For each Instrument/Device listed in the Table above,\nattach a completed AHRI Standard 550/590 (I-P) or AHRI Standard 551/591 (SI) Calibration Worksheet\n(found online at www.ahrinet.org)."]
[]
[]
[null,"Does the System meet the required accuracy over the intended range-of-use?"]
[null,null,null,null,null,{"$f":"IF(H640=\"\",\"\")","v":""}]
[]
[null,"Describe the method of analysis used to make the determination of system accuracy:"]
[]
[]
[]
[]
[]
[]
[]
[]
[]
[]
[]
[]
[]
[]
[]
[]
[null,"SYSTEM 15: AIR TEMPERATURE - CONDENSER, ASPIRATING PSYCHROMETER #5"]
[]
[null,"1. Using the Table below, list all instruments and data acquisition devices in the System."]
[]
[null,"Instrument/Device",null,"Description",null,null,null,null,"Manufacturer Stated Accuracy"]
[]
[]
[]
[]
[]
[]
[]
[]
[]
[null,"What is the intended range- of-use for the System?",null,null,null,null,"(Lower-Upper):",null,null,"-"]
[]
[null,"Was the system calibrated as a whole, or were each instruments/devices calibrated individually? "]
[null,null,null,null,{"$f":"IF(I676=\"\",\"\")","v":""}]
[]
[null,"2. Whole System Calibration Points: Attach a completed AHRI Standard 550/590 (I-P) or AHRI Standard\n551/591 (SI) Calibration Worksheet (found online at www.ahrinet.org)"]
[]
[null,"Does the System meet the required accuracy over the intended range-of-use?"]
[null,null,null,null,null,{"$f":"IF(H681=\"\",\"\")","v":""}]
[]
[null,"3. Individual Component Calibration Points: For each Instrument/Device listed in the Table above,\nattach a completed AHRI Standard 550/590 (I-P) or AHRI Standard 551/591 (SI) Calibration Worksheet\n(found online at www.ahrinet.org)."]
[]
[]
[null,"Does the System meet the required accuracy over the intended range-of-use?"]
[null,null,null,null,null,{"$f":"IF(H687=\"\",\"\")","v":""}]
[]
[null,"Describe the method of analysis used to make the determination of system accuracy:"]
[]
[]
[]
[]
[]
[]
[]
[]
[]
[]
[]
[]
[]
[]
[]
[]
[null,"SYSTEM 16: AIR TEMPERATURE - CONDENSER, ASPIRATING PSYCHROMETER #6"]
[]
[null,"1. Using the Table below, list all instruments and data acquisition devices in the System."]
[]
[null,"Instrument/Device",null,"Description",null,null,null,null,"Manufacturer Stated Accuracy"]
[]
[]
[]
[]
[]
[]
[]
[]
[]
[null,"What is the intended range- of-use for the System?",null,null,null,null,"(Lower-Upper):",null,null,"-"]
[]
[null,"Was the system calibrated as a whole, or were each instruments/devices calibrated individually? "]
[null,null,null,null,{"$f":"IF(I723=\"\",\"\")","v":""}]
[]
[null,"2. Whole System Calibration Points: Attach a completed AHRI Standard 550/590 (I-P) or AHRI Standard\n551/591 (SI) Calibration Worksheet (found online at www.ahrinet.org)"]
[]
[null,"Does the System meet the required accuracy over the intended range-of-use?"]
[null,null,null,null,null,{"$f":"IF(H728=\"\",\"\")","v":""}]
[]
[null,"3. Individual Component Calibration Points: For each Instrument/Device listed in the Table above,\nattach a completed AHRI Standard 550/590 (I-P) or AHRI Standard 551/591 (SI) Calibration Worksheet\n(found online at www.ahrinet.org)."]
[]
[]
[null,"Does the System meet the required accuracy over the intended range-of-use?"]
[null,null,null,null,null,{"$f":"IF(H734=\"\",\"\")","v":""}]
[]
[null,"Describe the method of analysis used to make the determination of system accuracy:"]